fUSD/lending_fUSD_20260517
["ID","MTS","AMOUNT","RATE_DAILY","PERIOD"]
[422498650,1778999462000,-527.12281632,0.00036364,2]
[422498660,1778999462000,-300.0,0.00036364,2]
[422498654,1778999462000,-1147.71030809,0.00036364,2]
[422498652,1778999462000,-300.0,0.00036364,2]
[422498642,1778999462000,-300.0,0.00036364,2]
[422498649,1778999462000,-344.12979214,0.00036364,2]
[422498669,1778999462000,-300.0,0.00036364,2]
[422498656,1778999462000,-300.0,0.00036364,2]
[422498675,1778999462000,-300.0,0.00036364,2]
[422498664,1778999462000,-300.0,0.00036364,2]
[422498662,1778999462000,-300.0,0.00036364,2]
[422498663,1778999462000,-311.04198967,0.00036364,2]
[422498674,1778999462000,-300.0,0.00036364,2]
[422498661,1778999462000,-300.0,0.00036364,2]
[422498655,1778999462000,-309.72976467,0.00036364,2]
[422498651,1778999462000,-300.0,0.00036364,2]
[422498653,1778999462000,-300.0,0.00036364,2]
[422498659,1778999462000,-1791.55036629,0.00036364,2]
[422498657,1778999462000,-864.84573435,0.00036364,2]
[422498658,1778999462000,-300.0,0.00036364,2]
[422498748,1778999463000,-464.05309097,0.00036364,2]
[422498742,1778999463000,-300.0,0.00036364,2]
[422498743,1778999463000,-300.0,0.00036364,2]
[422498740,1778999463000,-300.0,0.00036364,2]
[422498750,1778999463000,-577.47815809,0.00036364,2]
[422498732,1778999463000,-527.12281632,0.00036364,2]
[422498738,1778999463000,-300.0,0.00036364,2]
[422498739,1778999463000,-864.84573435,0.00036364,2]
[422498737,1778999463000,-309.72976467,0.00036364,2]
[422498736,1778999463000,-1147.71030809,0.00036364,2]
[422498733,1778999463000,-300.0,0.00036364,2]
[422498749,1778999463000,-300.0,0.00036364,2]
[422498746,1778999463000,-311.04198967,0.00036364,2]
[422498762,1778999463000,-2154.83471596,0.00036429,2]
[422498741,1778999463000,-1791.55036629,0.00036364,2]
[422498745,1778999463000,-300.0,0.00036364,2]
[422498744,1778999463000,-300.0,0.00036364,2]
[422498753,1778999463000,-300.0,0.00036364,2]
[422498754,1778999463000,-300.0,0.00036364,2]
[422498755,1778999463000,-300.0,0.00036364,2]
[422498756,1778999463000,-590.0,0.00036377,2]
[422498752,1778999463000,-300.0,0.00036364,2]
[422498751,1778999463000,-452.10208933,0.00036364,2]
[422498759,1778999463000,-2154.83471596,0.00036398,2]
[422498764,1778999463000,-3234.917,0.00036435,2]
[422498757,1778999463000,-2154.83471596,0.00036382,2]
[422498734,1778999463000,-300.0,0.00036364,2]
[422498747,1778999463000,-300.0,0.00036364,2]
[422498735,1778999463000,-300.0,0.00036364,2]
[422498714,1778999463000,-726.3731759,0.00036364,2]
[422498728,1778999463000,-300.0,0.00036364,2]
[422498760,1778999463000,-1407.0,0.000364,30]
[422498701,1778999463000,-491.77907201,0.00036364,2]
[422498703,1778999463000,-300.0,0.00036364,2]
[422498704,1778999463000,-300.0,0.00036364,2]
[422498705,1778999463000,-300.0,0.00036364,2]
[422498709,1778999463000,-300.0,0.00036364,2]
[422498702,1778999463000,-300.0,0.00036364,2]
[422498711,1778999463000,-300.0,0.00036364,2]
[422498706,1778999463000,-604.73492277,0.00036364,2]
[422498708,1778999463000,-300.0,0.00036364,2]
[422498712,1778999463000,-1067.39759447,0.00036364,2]
[422498707,1778999463000,-300.0,0.00036364,2]
[422498710,1778999463000,-527.9795525,0.00036364,2]
[422498725,1778999463000,-300.0,0.00036364,2]
[422498713,1778999463000,-893.8052833,0.00036364,2]
[422498715,1778999463000,-300.0,0.00036364,2]
[422498717,1778999463000,-300.0,0.00036364,2]
[422498718,1778999463000,-302.01224803,0.00036364,2]
[422498719,1778999463000,-300.0,0.00036364,2]
[422498720,1778999463000,-300.70672347,0.00036364,2]
[422498722,1778999463000,-300.0,0.00036364,2]
[422498723,1778999463000,-300.0,0.00036364,2]
[422498721,1778999463000,-300.52392583,0.00036364,2]
[422498724,1778999463000,-300.0,0.00036364,2]
[422498731,1778999463000,-344.12979214,0.00036364,2]
[422498730,1778999463000,-300.0,0.00036364,2]
[422498726,1778999463000,-300.0,0.00036364,2]
[422498727,1778999463000,-949.41386656,0.00036364,2]
[422498716,1778999463000,-301.92446648,0.00036364,2]
[422498761,1778999463000,-2154.83471596,0.00036411,2]
[422498729,1778999463000,-1913.25849317,0.00036364,2]
[422498763,1778999463000,-5821.9753,0.00036435,2]
[422498795,1778999463000,-5821.9753,0.00036824,2]
[422498794,1778999463000,-1155967.62079129,0.00036815,30]
[422498799,1778999463000,-834.61220969,0.00036839,2]
[422498823,1778999463000,-2154.83471596,0.00037029,2]
[422498798,1778999463000,-159.86,0.00036838,120]
[422498801,1778999463000,-350.0,0.00036849,5]
[422498806,1778999463000,-834.61220969,0.000369,2]
[422498805,1778999463000,-616.5,0.000369,120]
[422498802,1778999463000,-2118.6297,0.0003685,2]
[422498808,1778999463000,-2748.79525493,0.00036936,120]
[422498803,1778999463000,-350.0,0.00036881,2]
[422498809,1778999463000,-2154.83471596,0.00036946,2]
[422498807,1778999463000,-1466.02413596,0.00036931,7]
[422498804,1778999463000,-651.69,0.00036894,10]
[422498810,1778999463000,-1000.0,0.00036946,60]
[422498811,1778999463000,-5821.9753,0.00036953,2]
[422498814,1778999463000,-2154.83471596,0.0003697,2]
[422498824,1778999463000,-2118.6297,0.00037031,2]
[422498813,1778999463000,-2154.83471596,0.00036959,2]
[422498815,1778999463000,-2075.85899396,0.00036975,7]
[422498819,1778999463000,-2748.79525493,0.00037007,120]
[422498817,1778999463000,-3119.53896808,0.00036991,2]
[422498816,1778999463000,-151.6174179,0.00036986,2]
[422498822,1778999463000,-1223.0,0.00037023,2]
[422498820,1778999463000,-150.0,0.00037023,2]
[422498818,1778999463000,-2154.83471596,0.00036992,2]
[422498821,1778999463000,-1270.0,0.00037023,2]
[422498797,1778999463000,-1643.0,0.00036836,10]
[422498796,1778999463000,-3234.917,0.00036824,2]
[422498812,1778999463000,-3234.917,0.00036953,2]
[422498793,1778999463000,-491.10069556,0.00036815,31]
[422498791,1778999463000,-695.35620556,0.00036808,2]
[422498765,1778999463000,-135208.0886846,0.00036472,2]
[422498766,1778999463000,-42534.6667882,0.00036472,2]
[422498776,1778999463000,-997.43,0.00036641,10]
[422498777,1778999463000,-2118.6297,0.00036668,2]
[422498770,1778999463000,-298.54,0.0003653,10]
[422498767,1778999463000,-2154.83471596,0.00036472,2]
[422498768,1778999463000,-2118.6297,0.00036487,2]
[422498773,1778999463000,-3234.917,0.00036564,2]
[422498772,1778999463000,-5821.9753,0.00036564,2]
[422498769,1778999463000,-2154.83471596,0.00036492,2]
[422498774,1778999463000,-2154.83471596,0.0003663,2]
[422498771,1778999463000,-2500.0,0.00036537,10]
[422498775,1778999463000,-1184.68,0.00036636,10]
[422498758,1778999463000,-946.04681395,0.00036391,120]
[422498788,1778999463000,-281.93,0.000368,120]
[422498778,1778999463000,-751.92,0.00036677,30]
[422498792,1778999463000,-251.11897888,0.00036808,2]
[422498789,1778999463000,-1639.06764347,0.000368,2]
[422498790,1778999463000,-621.78829552,0.00036806,2]
[422498800,1778999463000,-936.90201733,0.00036845,2]
[422498787,1778999463000,-682.94,0.00036765,10]
[422498783,1778999463000,-2154.83471596,0.00036716,2]
[422498784,1778999463000,-603.0,0.00036748,12]
[422498779,1778999463000,-152.31,0.0003669,30]
[422498782,1778999463000,-946.04681395,0.00036708,120]
[422498785,1778999463000,-3119.53896808,0.00036749,2]
[422498781,1778999463000,-3234.917,0.00036694,2]
[422498780,1778999463000,-5821.9753,0.00036694,2]
[422498786,1778999463000,-3119.53896808,0.00036763,2]
[422498849,1778999464000,-154.29214092,0.000372,120]
[422498846,1778999464000,-503015.6768944,0.00037138,2]
[422498848,1778999464000,-154.29214092,0.000372,120]
[422498850,1778999464000,-5821.9753,0.00037213,2]
[422498843,1778999464000,-3999.92913207,0.00037103,120]
[422498851,1778999464000,-2118.6297,0.00037213,2]
[422498847,1778999464000,-391.81872224,0.00037196,2]
[422498856,1778999464000,-1000.0,0.00037267,60]
[422498864,1778999464000,-26797.0,0.00037337,2]
[422498853,1778999464000,-2154.83471596,0.00037215,2]
[422498862,1778999464000,-2154.83471596,0.00037326,2]
[422498855,1778999464000,-350.0,0.00037246,2]
[422498842,1778999464000,-11016.55574828,0.000371,2]
[422498857,1778999464000,-2154.83471596,0.0003727,2]
[422498865,1778999464000,-5821.9753,0.00037342,2]
[422498854,1778999464000,-2154.83471596,0.00037226,2]
[422498845,1778999464000,-58842.1288116,0.00037138,2]
[422498837,1778999464000,-961.61,0.000371,30]
[422498844,1778999464000,-3849.3894632,0.00037138,2]
[422498860,1778999464000,-152.31,0.000373,60]
[422498825,1778999464000,-1416.10821548,0.00037038,7]
[422498827,1778999464000,-1237.22508287,0.00037042,7]
[422498826,1778999464000,-1225.63710326,0.00037038,2]
[422498830,1778999464000,-2154.83471596,0.00037083,2]
[422498829,1778999464000,-639.70522509,0.00037062,60]
[422498831,1778999464000,-5821.9753,0.00037083,2]
[422498852,1778999464000,-3234.917,0.00037213,2]
[422498832,1778999464000,-3234.917,0.00037083,2]
[422498834,1778999464000,-580.33,0.000371,120]
[422498838,1778999464000,-216371.85163355,0.000371,2]
[422498836,1778999464000,-478.5,0.000371,120]
[422498835,1778999464000,-1097.66,0.000371,120]
[422498839,1778999464000,-191.396274,0.00031306,7]
[422498840,1778999464000,-17862.27190487,0.000371,2]
[422498841,1778999464000,-969.11,0.000371,120]
[422498833,1778999464000,-1000.0,0.00037084,60]
[422498828,1778999464000,-1000.0,0.00037058,60]
[422498858,1778999464000,-603.0,0.00037282,13]
[422498861,1778999464000,-2154.83471596,0.00037304,2]
[422498885,1778999464000,-3234.917,0.00037472,2]
[422498890,1778999464000,-1572.578401,0.000375,26]
[422498884,1778999464000,-5821.9753,0.00037472,2]
[422498886,1778999464000,-350.0,0.00037473,2]
[422498888,1778999464000,-2154.83471596,0.00037477,2]
[422498887,1778999464000,-1000.0,0.00037475,60]
[422498891,1778999464000,-2154.83471596,0.00037506,2]
[422498889,1778999464000,-150.0,0.000375,120]
[422498892,1778999464000,-2154.83471596,0.0003753,2]
[422498894,1778999464000,-295.6,0.00037555,2]
[422498900,1778999464000,-1000.0,0.00037586,60]
[422498897,1778999464000,-2154.83471596,0.00037575,2]
[422498896,1778999464000,-1000.0,0.00037568,60]
[422498895,1778999464000,-2154.83471596,0.00037556,2]
[422498899,1778999464000,-2118.6297,0.00037576,2]
[422498859,1778999464000,-2154.83471596,0.00037298,2]
[422498893,1778999464000,-200.0,0.00037544,10]
[422498879,1778999464000,-2154.83471596,0.00037434,2]
[422498898,1778999464000,-15008.7107,0.00037576,30]
[422498881,1778999464000,-1266.1,0.00037443,60]
[422498883,1778999464000,-3892.23561367,0.00037468,120]
[422498866,1778999464000,-3234.917,0.00037342,2]
[422498863,1778999464000,-2154.83471596,0.00037332,2]
[422498868,1778999464000,-2154.83471596,0.0003735,2]
[422498876,1778999464000,-2000.0,0.0003742,90]
[422498871,1778999464000,-1000.0,0.00037383,60]
[422498869,1778999464000,-260.4103811,0.00037356,2]
[422498874,1778999464000,-2154.83471596,0.00037417,2]
[422498870,1778999464000,-350.0,0.00037361,2]
[422498867,1778999464000,-2154.83471596,0.0003735,2]
[422498872,1778999464000,-2118.6297,0.00037394,2]
[422498873,1778999464000,-2154.83471596,0.0003741,2]
[422498877,1778999464000,-2000.0,0.0003742,90]
[422498878,1778999464000,-2000.0,0.0003742,90]
[422498880,1778999464000,-150.38591137,0.00037443,99]
[422498875,1778999464000,-2000.0,0.0003742,90]
[422498882,1778999464000,-1000.0,0.00037459,60]
[422498947,1778999465000,-1000.0,0.000378,2]
[422498943,1778999465000,-167.385,0.000378,38]
[422498944,1778999465000,-240.169598,0.000378,38]
[422498942,1778999465000,-245.7,0.000378,2]
[422498937,1778999465000,-1000.0,0.000378,7]
[422498941,1778999465000,-212.94,0.000378,2]
[422498933,1778999465000,-303.5288317,0.00037753,120]
[422498929,1778999465000,-1000.0,0.00037723,60]
[422498935,1778999465000,-2118.6297,0.00037757,2]
[422498934,1778999465000,-834.0,0.00037754,2]
[422498932,1778999465000,-150.0,0.0003775,120]
[422498936,1778999465000,-246.78,0.00037777,46]
[422498945,1778999465000,-1000.0,0.000378,2]
[422498965,1778999465000,-3234.917,0.00037861,2]
[422498948,1778999465000,-1000.0,0.000378,2]
[422498954,1778999465000,-1008.41099095,0.000378,2]
[422498950,1778999465000,-1000.0,0.000378,2]
[422498952,1778999465000,-1000.0,0.000378,2]
[422498953,1778999465000,-1000.0,0.000378,2]
[422498949,1778999465000,-1000.0,0.000378,2]
[422498956,1778999465000,-2000.0,0.000378,94]
[422498955,1778999465000,-200.0,0.000378,10]
[422498964,1778999465000,-5821.9753,0.00037861,2]
[422498957,1778999465000,-2000.0,0.000378,94]
[422498958,1778999465000,-194.168,0.000378,37]
[422498961,1778999465000,-1000.0,0.00037813,60]
[422498939,1778999465000,-1135.0,0.000378,7]
[422498946,1778999465000,-1000.0,0.000378,2]
[422498938,1778999465000,-1000.0,0.000378,7]
[422498910,1778999465000,-151.0,0.00037602,7]
[422498940,1778999465000,-312.615,0.000378,38]
[422498902,1778999465000,-1000.0,0.00037591,60]
[422498901,1778999465000,-4411.28004785,0.0003759,2]
[422498904,1778999465000,-2154.83471596,0.000376,2]
[422498914,1778999465000,-151.0,0.00037602,7]
[422498915,1778999465000,-3234.917,0.00037602,2]
[422498903,1778999465000,-1407.0,0.000376,30]
[422498907,1778999465000,-455.147833,0.00037602,7]
[422498906,1778999465000,-455.147833,0.00037602,7]
[422498905,1778999465000,-5821.9753,0.00037602,2]
[422498908,1778999465000,-151.0,0.00037602,7]
[422498911,1778999465000,-151.0,0.00037602,7]
[422498909,1778999465000,-455.147833,0.00037602,7]
[422498913,1778999465000,-151.0,0.00037602,7]
[422498931,1778999465000,-3234.917,0.00037731,2]
[422498912,1778999465000,-455.147831,0.00037602,7]
[422498917,1778999465000,-751.92,0.00037612,60]
[422498918,1778999465000,-1000.0,0.00037613,60]
[422498920,1778999465000,-400.0,0.00037615,2]
[422498927,1778999465000,-150.0,0.00037694,2]
[422498919,1778999465000,-400.0,0.00037615,2]
[422498921,1778999465000,-1000.0,0.00037615,2]
[422498922,1778999465000,-1000.0,0.00037615,2]
[422498928,1778999465000,-1000.0,0.00037704,60]
[422498923,1778999465000,-250.0,0.0003762,30]
[422498926,1778999465000,-152.0,0.00037682,9]
[422498925,1778999465000,-1000.0,0.00037656,60]
[422498924,1778999465000,-2154.83471596,0.00037641,2]
[422498930,1778999465000,-5821.9753,0.00037731,2]
[422498916,1778999465000,-373.16,0.00037604,30]
[422498960,1778999465000,-350.0,0.00037808,5]
[422498951,1778999465000,-1000.0,0.000378,2]
[422498959,1778999465000,-8053.1754334,0.00037804,2]
[422498997,1778999465000,-3951.7470091,0.00038,90]
[422498993,1778999465000,-151.0,0.00038,120]
[422498998,1778999465000,-1500.0,0.00038,5]
[422499002,1778999465000,-194.168,0.00038,37]
[422499000,1778999465000,-150.0,0.00038,120]
[422499001,1778999465000,-1612.97,0.00038,7]
[422498999,1778999465000,-173.24577485,0.00038,2]
[422499005,1778999465000,-150.36,0.00038009,60]
[422499015,1778999465000,-962.4,0.00038125,30]
[422499004,1778999465000,-200.0,0.00038,15]
[422499007,1778999465000,-350.0,0.00038091,2]
[422499010,1778999465000,-242.27,0.000381,90]
[422499013,1778999465000,-2118.6306,0.0003812,2]
[422499003,1778999465000,-1500.0,0.00038,26]
[422499014,1778999465000,-3234.9169,0.0003812,2]
[422499009,1778999465000,-242.27,0.000381,60]
[422499012,1778999465000,-5821.9753,0.0003812,2]
[422499008,1778999465000,-9607.43100594,0.000381,33]
[422499016,1778999465000,-1520.99735623,0.00038135,2]
[422499020,1778999465000,-783.89263946,0.000382,30]
[422499021,1778999465000,-150.36,0.00038209,60]
[422499017,1778999465000,-512.398822,0.00038159,120]
[422499018,1778999465000,-783.89263947,0.000382,30]
[422499024,1778999465000,-3119.53896808,0.00038261,2]
[422499023,1778999465000,-500.0,0.00038256,120]
[422499019,1778999465000,-783.89263946,0.000382,30]
[422499022,1778999465000,-150.0,0.0003825,120]
[422498966,1778999465000,-500.8620181,0.00037862,30]
[422499006,1778999465000,-471.0,0.00038025,2]
[422498996,1778999465000,-1560.44371713,0.00038,2]
[422499011,1778999465000,-150.36,0.00038109,60]
[422498995,1778999465000,-238667.30348403,0.00038,2]
[422498994,1778999465000,-343.0,0.00038,30]
[422498962,1778999465000,-603.0,0.00037816,13]
[422498967,1778999465000,-201.727795,0.00037877,7]
[422498972,1778999465000,-38209.42602213,0.00037893,2]
[422498970,1778999465000,-2000.0,0.00037893,2]
[422498971,1778999465000,-10000.0,0.00037893,2]
[422498969,1778999465000,-861.36074344,0.00037892,2]
[422498973,1778999465000,-2000.0,0.00037893,2]
[422498963,1778999465000,-936.90201733,0.00037845,2]
[422498968,1778999465000,-205.75752157,0.0003788,2]
[422498977,1778999465000,-266217.05236138,0.00037893,2]
[422498976,1778999465000,-1582.847602,0.00037893,2]
[422498974,1778999465000,-10000.0,0.00037893,2]
[422498978,1778999465000,-323.32,0.000379,15]
[422498975,1778999465000,-3181.588162,0.00037893,2]
[422498981,1778999465000,-270.0455652,0.00037904,2]
[422498979,1778999465000,-396.3,0.000379,120]
[422498985,1778999465000,-2118.6297,0.00037939,2]
[422498988,1778999465000,-5821.9753,0.00037991,2]
[422498984,1778999465000,-152.31,0.0003791,86]
[422498986,1778999465000,-403.2076737,0.0003797,2]
[422498983,1778999465000,-163.0,0.0003791,11]
[422498992,1778999465000,-153.0,0.00038,120]
[422498980,1778999465000,-300.0,0.000379,10]
[422498982,1778999465000,-150.36,0.00037909,60]
[422498989,1778999465000,-3234.917,0.00037991,2]
[422498990,1778999465000,-1000.79945946,0.00038,2]
[422498991,1778999465000,-81229.05477068,0.00038,120]
[422498987,1778999465000,-168.93,0.00037974,7]
[422499067,1778999466000,-200.0,0.00038326,2]
[422499068,1778999466000,-200.0,0.00038326,2]
[422499064,1778999466000,-200.0,0.00038326,2]
[422499070,1778999466000,-200.0,0.00038326,2]
[422499076,1778999466000,-200.0,0.00038326,2]
[422499062,1778999466000,-200.0,0.00038326,2]
[422499059,1778999466000,-200.0,0.00038326,2]
[422499060,1778999466000,-200.0,0.00038326,2]
[422499061,1778999466000,-200.0,0.00038326,2]
[422499058,1778999466000,-200.0,0.00038326,2]
[422499057,1778999466000,-157.0,0.00038326,2]
[422499065,1778999466000,-200.0,0.00038326,2]
[422499069,1778999466000,-200.0,0.00038326,2]
[422499084,1778999466000,-200.0,0.00038326,2]
[422499075,1778999466000,-200.0,0.00038326,2]
[422499073,1778999466000,-200.0,0.00038326,2]
[422499071,1778999466000,-200.0,0.00038326,2]
[422499072,1778999466000,-200.0,0.00038326,2]
[422499074,1778999466000,-200.0,0.00038326,2]
[422499078,1778999466000,-200.0,0.00038326,2]
[422499089,1778999466000,-200.0,0.00038326,2]
[422499088,1778999466000,-200.0,0.00038326,2]
[422499090,1778999466000,-200.0,0.00038326,2]
[422499080,1778999466000,-200.0,0.00038326,2]
[422499077,1778999466000,-200.0,0.00038326,2]
[422499083,1778999466000,-200.0,0.00038326,2]
[422499056,1778999466000,-200.0,0.00038326,2]
[422499066,1778999466000,-200.0,0.00038326,2]
[422499055,1778999466000,-200.0,0.00038326,2]
[422499027,1778999466000,-2900.68,0.00038276,60]
[422499053,1778999466000,-200.0,0.00038326,2]
[422499085,1778999466000,-200.0,0.00038326,2]
[422499025,1778999466000,-455.28,0.00038276,60]
[422499026,1778999466000,-3531.97,0.00038276,60]
[422499029,1778999466000,-3632.0,0.00038281,2]
[422499031,1778999466000,-300.0,0.00038299,2]
[422499028,1778999466000,-6055.0,0.00038281,2]
[422499039,1778999466000,-439.29,0.00038318,10]
[422499032,1778999466000,-300.0,0.00038299,2]
[422499030,1778999466000,-911.0835219,0.0003829,2]
[422499037,1778999466000,-309.34,0.00038299,2]
[422499034,1778999466000,-300.0,0.00038299,2]
[422499033,1778999466000,-300.0,0.00038299,2]
[422499036,1778999466000,-300.0,0.00038299,2]
[422499063,1778999466000,-200.0,0.00038326,2]
[422499038,1778999466000,-150.36,0.00038309,60]
[422499043,1778999466000,-200.0,0.00038326,2]
[422499040,1778999466000,-200.0,0.00038326,2]
[422499042,1778999466000,-200.0,0.00038326,2]
[422499051,1778999466000,-200.0,0.00038326,2]
[422499048,1778999466000,-200.0,0.00038326,2]
[422499044,1778999466000,-200.0,0.00038326,2]
[422499050,1778999466000,-200.0,0.00038326,2]
[422499046,1778999466000,-200.0,0.00038326,2]
[422499045,1778999466000,-200.0,0.00038326,2]
[422499047,1778999466000,-200.0,0.00038326,2]
[422499049,1778999466000,-200.0,0.00038326,2]
[422499052,1778999466000,-200.0,0.00038326,2]
[422499054,1778999466000,-200.0,0.00038326,2]
[422499035,1778999466000,-300.0,0.00038299,2]
[422499079,1778999466000,-200.0,0.00038326,2]
[422499041,1778999466000,-200.0,0.00038326,2]
[422499081,1778999466000,-200.0,0.00038326,2]
[422499126,1778999466000,-500.0,0.00038393,120]
[422499121,1778999466000,-1700.0,0.00038356,2]
[422499124,1778999466000,-550.0,0.00038356,2]
[422499119,1778999466000,-509.0,0.00038356,2]
[422499122,1778999466000,-1557.0,0.00038356,2]
[422499123,1778999466000,-550.0,0.00038356,2]
[422499120,1778999466000,-1700.0,0.00038356,2]
[422499127,1778999466000,-500.0,0.00038396,120]
[422499131,1778999466000,-500.0,0.00038396,120]
[422499141,1778999466000,-537.598746,0.00038396,120]
[422499142,1778999466000,-188.0271109,0.00038396,120]
[422499130,1778999466000,-500.0,0.00038396,120]
[422499132,1778999466000,-500.0,0.00038396,120]
[422499125,1778999466000,-497.0,0.00038356,2]
[422499134,1778999466000,-500.0,0.00038396,120]
[422499135,1778999466000,-500.0,0.00038396,120]
[422499138,1778999466000,-500.0,0.00038396,120]
[422499136,1778999466000,-500.0,0.00038396,120]
[422499140,1778999466000,-500.0,0.00038396,120]
[422499139,1778999466000,-500.0,0.00038396,120]
[422499137,1778999466000,-500.0,0.00038396,120]
[422499143,1778999466000,-153.0,0.000384,120]
[422499145,1778999466000,-280.03725112,0.00038452,2]
[422499146,1778999466000,-82523.84034153,0.000385,2]
[422499144,1778999466000,-150.36,0.00038409,120]
[422499148,1778999466000,-150.36,0.00038509,120]
[422499147,1778999466000,-150.0,0.000385,120]
[422499086,1778999466000,-200.0,0.00038326,2]
[422499133,1778999466000,-500.0,0.00038396,120]
[422499129,1778999466000,-500.0,0.00038396,120]
[422499149,1778999466000,-152.31,0.0003853,105]
[422499118,1778999466000,-550.0,0.00038356,2]
[422499117,1778999466000,-550.0,0.00038356,2]
[422499082,1778999466000,-200.0,0.00038326,2]
[422499087,1778999466000,-200.0,0.00038326,2]
[422499093,1778999466000,-200.0,0.00038326,2]
[422499094,1778999466000,-336.0,0.00038326,2]
[422499096,1778999466000,-1622.5,0.00038329,120]
[422499095,1778999466000,-1622.5,0.00038329,120]
[422499098,1778999466000,-2178.0,0.00038329,120]
[422499102,1778999466000,-2156.5,0.00038329,120]
[422499097,1778999466000,-2178.0,0.00038329,120]
[422499092,1778999466000,-200.0,0.00038326,2]
[422499101,1778999466000,-2156.5,0.00038329,120]
[422499100,1778999466000,-1858.0,0.00038329,120]
[422499099,1778999466000,-1858.0,0.00038329,120]
[422499091,1778999466000,-200.0,0.00038326,2]
[422499105,1778999466000,-2491.0,0.00038329,120]
[422499128,1778999466000,-500.0,0.00038396,120]
[422499103,1778999466000,-2190.5,0.00038329,120]
[422499108,1778999466000,-1250.0,0.00038356,2]
[422499110,1778999466000,-1171.0,0.00038356,2]
[422499112,1778999466000,-850.0,0.00038356,2]
[422499111,1778999466000,-850.0,0.00038356,2]
[422499109,1778999466000,-1250.0,0.00038356,2]
[422499114,1778999466000,-1250.0,0.00038356,2]
[422499107,1778999466000,-706.60998354,0.00038356,60]
[422499115,1778999466000,-1250.0,0.00038356,2]
[422499116,1778999466000,-1144.0,0.00038356,2]
[422499113,1778999466000,-712.0,0.00038356,2]
[422499106,1778999466000,-603.0,0.0003835,14]
[422499104,1778999466000,-2190.5,0.00038329,120]
[422499178,1778999467000,-500.0,0.00038887,7]
[422499184,1778999467000,-500.0,0.00038887,7]
[422499183,1778999467000,-500.0,0.00038887,7]
[422499187,1778999467000,-500.0,0.00038887,7]
[422499180,1778999467000,-500.0,0.00038887,7]
[422499182,1778999467000,-500.0,0.00038887,7]
[422499190,1778999467000,-500.0,0.00038887,7]
[422499185,1778999467000,-500.0,0.00038887,7]
[422499188,1778999467000,-500.0,0.00038887,7]
[422499186,1778999467000,-500.0,0.00038887,7]
[422499179,1778999467000,-500.0,0.00038887,7]
[422499181,1778999467000,-500.0,0.00038887,7]
[422499196,1778999467000,-2000.0,0.000389,7]
[422499191,1778999467000,-451.51,0.00038887,7]
[422499197,1778999467000,-150.42250063,0.00038909,120]
[422499194,1778999467000,-200.0,0.000389,16]
[422499192,1778999467000,-500.0,0.00038887,7]
[422499195,1778999467000,-396.3,0.000389,120]
[422499198,1778999467000,-150.0,0.00038963,2]
[422499200,1778999467000,-255.59335361,0.00038963,2]
[422499203,1778999467000,-343.0,0.00039,30]
[422499199,1778999467000,-150.0,0.00038963,2]
[422499189,1778999467000,-500.0,0.00038887,7]
[422499201,1778999467000,-210.81185492,0.00038975,2]
[422499193,1778999467000,-153.0,0.000389,120]
[422499175,1778999467000,-468742.32155187,0.0003888,60]
[422499162,1778999467000,-163.0,0.00038734,11]
[422499171,1778999467000,-2313.0,0.00038826,11]
[422499202,1778999467000,-314.61818518,0.00038979,2]
[422499150,1778999467000,-500.0,0.0003853,120]
[422499151,1778999467000,-751.92,0.00038547,60]